[Event "EYTCC Open U18 2022"]
[Site "Thessaloniki"]
[Date "2022.07.15"]
[Round "4.37"]
[White "Pekkul, Arda"]
[Black "Betsakou, Sofia"]
[Result "1-0"]
[ECO "B12"]
[WhiteElo "1599"]
[BlackElo "1412"]
[Annotator "NA"]
[PlyCount "94"]
[EventDate "2022.07.12"]
[EventType "team-tourn"]
[EventCountry "GRE"]
[SourceTitle "playchess.com"]
[Source "ChessBase"]
[SourceQuality "1"]
[WhiteTeam "Turkey"]
[BlackTeam "Greece"]
[WhiteTeamCountry "TUR"]
[BlackTeamCountry "GRE"]
[TimeControl "40/5400+30:1800+30"]

1. e4 {[%emt 0:00:05]} c6 {[%emt 0:00:10]} 2. d4 {[%emt 0:00:06]} d5 {[%emt 0:00:05]} 3. e5 {[%emt 0:00:18]} Bf5 {[%emt 0:00:14]} 4. Nc3 {[%emt 0:00:08]} e6 {[%emt 0:00:29]} 5. g4 {[%emt 0:00:10]} Bg6 {[%emt 0:00:07]} 6. Nge2 {[%emt 0:00:13]} c5 {[%emt 0:00:43]} 7. h4 {[%emt 0:00:10]} h5 {[%emt 0:00:18]} 8. Nf4 {[%emt 0:00:09]} Bh7 {[%emt 0:00:51]} 9. Nxh5 {[%emt 0:01:00]} cxd4 {[%emt 0:02:04]} 10. Nb5 {[%emt 0:00:13]} Nc6 {[%emt 0:01:50]} 11. Nxd4 {[%emt 0:03:16]} Nxd4 {[%emt 0:16:05]} 12. Qxd4 {[%emt 0:00:18]} Ne7 {[%emt 0:04:38]} 13. Qa4+ {[%emt 0:28:49]} Nc6 {[%emt 0:01:35]} 14. Bb5 {[%emt 0:13:23]} Qc7 {[%emt 0:04:30]} 15. f4 {[%emt 0:02:37]} Bxc2 {[%emt 0:07:29]} 16. Bxc6+ {[%emt 0:01:04]} Qxc6 {[%emt 0:00:22]} 17. Qxc6+ {[%emt 0:00:43]} bxc6 {[%emt 0:00:08]} 18. Bd2 {[%emt 0:00:59]} c5 {[%emt 0:12:13]} 19. Rc1 {[%emt 0:01:54]} Bg6 {[%emt 0:02:27]} 20. Ng3 {[%emt 0:00:14]} Bd3 {[%emt 0:02:54]} 21. Be3 {[%emt 0:06:27]} c4 {[%emt 0:03:59]} 22. a3 {[%emt 0:02:04]} a5 {[%emt 0:08:15]} 23. Bd4 {[%emt 0:03:28]} Be7 {[%emt 0:01:58]} 24. h5 {[%emt 0:00:45]} f6 {[%emt 0:03:25]} 25. h6 {[%emt 0:08:47]} Rxh6 {[%emt 0:09:47]} 26. Rxh6 {[%emt 0:00:13]} gxh6 {[%emt 0:00:08]} 27. exf6 {[%emt 0:00:08]} Bd6 {[%emt 0:01:02]} 28. Nh5 {[%emt 0:02:35]} Kf7 {[%emt 0:04:25]} 29. Kf2 {[%emt 0:04:28]} Bg6 {[%emt 0:03:44]} 30. Kf3 {[%emt 0:02:08]} Bxh5 {[%emt 0:00:38]} 31. gxh5 {[%emt 0:00:06]} Rg8 {[%emt 0:01:00]} 32. a4 {[%emt 0:03:14]} Re8 {[%emt 0:04:55]} 33. Rg1 {[%emt 0:05:59]} e5 {[%emt 0:00:59]} 34. Rg7+ {[%emt 0:00:08]} Kxf6 {[%emt 0:03:21]} 35. Rg6+ {[%emt 0:00:17]} Ke7 {[%emt 0:00:08]} 36. fxe5 {[%emt 0:00:11]} Bb4 {[%emt 0:00:43]} 37. Rxh6 {[%emt 0:00:41]} Bd2 {[%emt 0:00:34]} 38. Bc5+ {[%emt 0:01:48]} Kf7 {[%emt 0:00:32]} 39. Rf6+ {[%emt 0:00:19]} Kg8 {[%emt 0:00:38]} 40. Bd4 {[%emt 0:00:00]} Kh7 {[%emt 0:00:00]} 41. Rd6 {[%emt 0:12:13]} Rf8+ {[%emt 0:04:21]} 42. Ke2 {[%emt 0:00:26]} Bb4 {[%emt 0:00:31]} 43. Rxd5 {[%emt 0:00:21]} Rf5 {[%emt 0:00:59]} 44. Rd7+ {[%emt 0:00:45]} Kh6 {[%emt 0:02:24]} 45. e6 {[%emt 0:00:35]} Rxh5 {[%emt 0:12:15]} 46. e7 {[%emt 0:00:26]} Rh1 {[%emt 0:00:21]} 47. Be3+ Kg6 1-0

[Event "EYTCC Open U18 2022"]
[Site "Thessaloniki"]
[Date "2022.07.15"]
[Round "4.38"]
[White "Betsakos, Haralampos"]
[Black "Aydogdu, Selcan Ayberk"]
[Result "0-1"]
[ECO "D05"]
[WhiteElo "1183"]
[BlackElo "1902"]
[Annotator "ChessBase"]
[PlyCount "94"]
[EventDate "2022.07.12"]
[EventType "team-tourn"]
[EventCountry "GRE"]
[SourceTitle "playchess.com"]
[Source "ChessBase"]
[SourceQuality "1"]
[WhiteTeam "Greece"]
[BlackTeam "Turkey"]
[WhiteTeamCountry "GRE"]
[BlackTeamCountry "TUR"]
[TimeControl "40/5400+30:1800+30"]

1. d4 {[%emt 0:00:03]} e6 {[%emt 0:00:04]} 2. Nf3 {[%emt 0:00:13]} d5 {[%emt 0:00:14]} 3. e3 {[%emt 0:00:51]} Nf6 {[%emt 0:00:07]} 4. Bd3 {[%emt 0:00:13]} Be7 {[%emt 0:00:10]} 5. O-O {[%emt 0:00:35]} O-O {[%emt 0:00:05]} 6. Nbd2 {[%emt 0:01:02]} c5 {[%emt 0:00:21]} 7. c4 {[%emt 0:01:15]} b6 {[%emt 0:00:17]} 8. b3 {[%emt 0:05:26]} Bb7 {[%emt 0:01:20]} 9. Qc2 {[%emt 0:07:48]} Nc6 {[%emt 0:00:52]} 10. Bb2 {[%emt 0:18:03]} Nb4 {[%emt 0:00:29]} 11. Qc3 {[%emt 0:01:26]} Nxd3 {[%emt 0:01:45]} 12. Qxd3 {[%emt 0:00:10]} Rc8 {[%emt 0:06:47]} 13. Rac1 {[%emt 0:03:58]} dxc4 {[%emt 0:09:06]} 14. Qxc4 {[%emt 0:05:52]} Nd5 {[%emt 0:11:03]} 15. Qe2 {[%emt 0:11:51]} cxd4 {[%emt 0:06:31]} 16. Nxd4 {[%emt 0:03:56]} Qd7 {[%emt 0:07:46]} 17. a3 {[%emt 0:04:07]} e5 {[%emt 0:02:05]} 18. N4f3 {[%emt 0:02:52]} f6 {[%emt 0:00:30]} 19. Rfd1 {[%emt 0:02:18]} Qe6 {[%emt 0:02:24]} 20. b4 {[%emt 0:04:06]} Rfd8 {[%emt 0:05:21]} 21. Nb1 {[%emt 0:02:42]} a6 {[%emt 0:05:33]} 22. Nc3 {[%emt 0:05:08]} b5 {[%emt 0:02:17]} 23. Rd2 {[%emt 0:10:07]} Nb6 {[%emt 0:00:53]} 24. Rcd1 {[%emt 0:03:19]} Bd6 {[%emt 0:08:26]} 25. Rc2 {[%emt 0:01:39]} Nc4 {[%emt 0:01:02]} 26. Rdc1 {[%emt 0:00:44]} Be7 {[%emt 0:02:25]} 27. Nd2 {[%emt 0:00:53]} Nb6 {[%emt 0:05:04]} 28. Nce4 {[%emt 0:01:16]} Rxc2 {[%emt 0:01:30]} 29. Rxc2 {[%emt 0:00:21]} Na4 {[%emt 0:02:23]} 30. Nc5 {[%emt 0:01:21]} Nxc5 {[%emt 0:02:18]} 31. bxc5 {[%emt 0:00:15]} Qc6 {[%emt 0:01:34]} 32. f3 {[%emt 0:01:31]} Bxc5 {[%emt 0:01:58]} 33. Nf1 {[%emt 0:00:25]} Qb6 {[%emt 0:00:53]} 34. Rd2 {[%emt 0:00:33]} Rd6 {[%emt 0:02:31]} 35. Kh1 {[%emt 0:00:54]} Bd5 {[%emt 0:01:28]} 36. e4 {[%emt 0:00:33]} Bc4 {[%emt 0:00:11]} 37. Rxd6 {[%emt 0:00:35]} Qxd6 {[%emt 0:00:12]} 38. Qe1 {[%emt 0:00:28]} Bxa3 {[%emt 0:05:30]} 39. Bxa3 {[%emt 0:00:15]} Qxa3 {[%emt 0:00:14]} 40. Ne3 {[%emt 0:00:00]} Qd3 {[%emt 0:00:00]} 41. Nxc4 {[%emt 0:03:14]} bxc4 {[%emt 0:01:13]} 42. Qa1 {[%emt 0:08:08]} h6 {[%emt 0:00:29]} 43. h3 {[%emt 0:02:29]} c3 {[%emt 0:01:02]} 44. Qa2+ {[%emt 0:00:24]} Kh7 {[%emt 0:00:20]} 45. Qe6 {[%emt 0:00:36]} c2 {[%emt 0:00:39]} 46. Qf5+ {[%emt 0:01:03]} Kg8 {[%emt 0:00:48]} 47. Qc8+ {[%emt 0:03:56]} Kf7 {[%emt 0:00:22]} 0-1

[Event "EYTCC Open U18 2022"]
[Site "Thessaloniki"]
[Date "2022.07.15"]
[Round "4.39"]
[White "Turk, Talha Gunes"]
[Black "Karkanas, Stylianos"]
[Result "1-0"]
[ECO "B40"]
[WhiteElo "1597"]
[BlackElo "1089"]
[Annotator "NA"]
[PlyCount "59"]
[EventDate "2022.07.12"]
[EventType "team-tourn"]
[EventCountry "GRE"]
[SourceTitle "playchess.com"]
[Source "ChessBase"]
[SourceQuality "1"]
[WhiteTeam "Turkey"]
[BlackTeam "Greece"]
[WhiteTeamCountry "TUR"]
[BlackTeamCountry "GRE"]
[TimeControl "40/5400+30:1800+30"]

1. e4 {[%emt 0:00:10]} c5 {[%emt 0:00:18]} 2. Nf3 {[%emt 0:00:10]} e6 {[%emt 0:00:12]} 3. c3 {[%emt 0:00:25]} Nf6 {[%emt 0:00:40]} 4. e5 {[%emt 0:00:09]} Nd5 {[%emt 0:00:14]} 5. d4 {[%emt 0:00:05]} cxd4 {[%emt 0:00:23]} 6. cxd4 {[%emt 0:00:04]} d6 {[%emt 0:00:48]} 7. Nc3 {[%emt 0:01:03]} Nb6 {[%emt 0:06:49]} 8. Bg5 {[%emt 0:08:02]} Be7 {[%emt 0:02:06]} 9. Bxe7 {[%emt 0:00:07]} Qxe7 {[%emt 0:00:57]} 10. Rc1 {[%emt 0:02:14]} dxe5 {[%emt 0:04:47]} 11. dxe5 {[%emt 0:00:19]} Nc6 {[%emt 0:00:56]} 12. Bd3 {[%emt 0:00:27]} O-O {[%emt 0:04:20]} 13. h4 {[%emt 0:05:27]} h6 {[%emt 0:09:56]} 14. Qe2 {[%emt 0:15:05]} Qb4 {[%emt 0:08:41]} 15. a3 {[%emt 0:05:03]} Qf4 {[%emt 0:03:07]} 16. Rd1 {[%emt 0:00:51]} Nd7 {[%emt 0:02:58]} 17. g3 {[%emt 0:04:22]} Qg4 {[%emt 0:00:28]} 18. Qe3 {[%emt 0:00:26]} Qh5 {[%emt 0:05:00]} 19. g4 {[%emt 0:08:49]} Qxg4 {[%emt 0:02:18]} 20. h5 {[%emt 0:01:34]} g5 {[%emt 0:08:23]} 21. hxg6 {[%emt 0:04:19]} h5 {[%emt 0:10:07]} 22. Qh6 {[%emt 0:01:04]} fxg6 {[%emt 0:02:47]} 23. Bxg6 {[%emt 0:00:09]} Rf7 {[%emt 0:04:06]} 24. Rxh5 {[%emt 0:00:23]} Qxh5 {[%emt 0:04:44]} 25. Qxh5 {[%emt 0:00:28]} Rg7 {[%emt 0:00:52]} 26. Ne4 {[%emt 0:00:09]} Ncxe5 {[%emt 0:01:00]} 27. Nxe5 {[%emt 0:00:16]} Kf8 {[%emt 0:02:29]} 28. Qh8+ {[%emt 0:00:35]} Rg8 {[%emt 0:00:25]} 29. Nxd7+ {[%emt 0:00:05]} Ke7 {[%emt 0:01:18]} 30. Qh4# {[%emt 0:01:43]} 1-0

[Event "EYTCC Open U18 2022"]
[Site "Thessaloniki"]
[Date "2022.07.16"]
[Round "5.1"]
[White "Baum, Jonasz"]
[Black "Rozen, Eytan"]
[Result "1/2-1/2"]
[ECO "A06"]
[WhiteElo "2410"]
[BlackElo "2465"]
[Annotator "ChessBase"]
[PlyCount "115"]
[EventDate "2022.07.12"]
[EventType "team-tourn"]
[EventCountry "GRE"]
[SourceTitle "playchess.com"]
[Source "ChessBase"]
[SourceQuality "1"]
[WhiteTeam "Poland"]
[BlackTeam "Israel"]
[WhiteTeamCountry "POL"]
[BlackTeamCountry "ISR"]
[TimeControl "40/5400+30:1800+30"]

1. Nf3 {[%emt 0:00:02]} d5 {[%emt 0:02:41]} 2. g3 {[%emt 0:00:42]} c6 {[%emt 0:00:44]} 3. Bg2 {[%emt 0:00:08]} Nf6 {[%emt 0:00:15]} 4. O-O {[%emt 0:00:29]} Bf5 {[%emt 0:00:17]} 5. d4 {[%emt 0:01:34]} Nbd7 {[%emt 0:01:03]} 6. c4 {[%emt 0:09:24]} e6 {[%emt 0:01:15]} 7. Qb3 {[%emt 0:03:19]} Qb6 {[%emt 0:07:25]} 8. Nc3 {[%emt 0:00:30]} Qa6 {[%emt 0:07:04]} 9. Nd2 {[%emt 0:03:07]} Be7 {[%emt 0:00:50]} 10. e4 {[%emt 0:05:45]} dxe4 {[%emt 0:00:07]} 11. Ndxe4 {[%emt 0:00:15]} O-O {[%emt 0:06:13]} 12. Re1 {[%emt 0:06:26]} Rfd8 {[%emt 0:04:28]} 13. Be3 {[%emt 0:05:34]} Nxe4 {[%emt 0:12:40]} 14. Nxe4 {[%emt 0:00:12]} b5 {[%emt 0:06:29]} 15. cxb5 {[%emt 0:10:20]} Qxb5 {[%emt 0:00:05]} 16. Qxb5 {[%emt 0:03:12]} cxb5 {[%emt 0:01:14]} 17. Nc3 {[%emt 0:01:13]} Rab8 {[%emt 0:15:26]} 18. Bf4 {[%emt 0:00:15]} Nf6 {[%emt 0:02:31]} 19. Bxb8 {[%emt 0:00:42]} Rxb8 {[%emt 0:00:03]} 20. a3 {[%emt 0:09:55]} a5 {[%emt 0:00:59]} 21. d5 {[%emt 0:09:23]} b4 {[%emt 0:01:55]} 22. axb4 {[%emt 0:00:04]} Bxb4 {[%emt 0:00:42]} 23. dxe6 {[%emt 0:00:23]} Bxe6 {[%emt 0:00:09]} 24. Re5 {[%emt 0:05:54]} g6 {[%emt 0:01:34]} 25. Rb5 {[%emt 0:01:19]} Rc8 {[%emt 0:00:37]} 26. Rbxa5 {[%emt 0:08:36]} Bxa5 {[%emt 0:00:57]} 27. Rxa5 {[%emt 0:00:02]} Kg7 {[%emt 0:00:48]} 28. Ra8 {[%emt 0:04:33]} Rc7 {[%emt 0:03:45]} 29. Ra1 {[%emt 0:01:10]} Rc8 {[%emt 0:00:54]} 30. Ra8 {[%emt 0:03:46]} Rc4 {[%emt 0:04:30]} 31. Ra4 {[%emt 0:00:14]} Rc8 {[%emt 0:00:08]} 32. Rd4 {[%emt 0:00:50]} Rb8 {[%emt 0:00:31]} 33. b4 {[%emt 0:03:52]} Rc8 {[%emt 0:00:24]} 34. Nd1 {[%emt 0:01:45]} Rc1 {[%emt 0:02:33]} 35. Bf3 {[%emt 0:00:23]} Nd7 {[%emt 0:02:52]} 36. Kg2 {[%emt 0:00:19]} Ne5 {[%emt 0:00:06]} 37. Bd5 {[%emt 0:01:48]} Bxd5+ {[%emt 0:01:47]} 38. Rxd5 {[%emt 0:00:02]} Kf6 {[%emt 0:00:20]} 39. Ne3 {[%emt 0:00:24]} Ke6 {[%emt 0:00:55]} 40. Rb5 {[%emt 0:00:00]} Rb1 {[%emt 0:00:00]} 41. Rb6+ {[%emt 0:04:51]} Kd7 {[%emt 0:04:46]} 42. Rb5 {[%emt 0:11:42]} Ke6 {[%emt 0:00:55]} 43. Rb8 {[%emt 0:02:38]} Kd6 {[%emt 0:02:54]} 44. Rd8+ {[%emt 0:03:09]} Ke6 {[%emt 0:03:53]} 45. Rd4 {[%emt 0:00:48]} Nc6 {[%emt 0:03:30]} 46. Re4+ {[%emt 0:00:05]} Kd6 {[%emt 0:01:16]} 47. Rf4 {[%emt 0:00:42]} f5 {[%emt 0:07:15]} 48. Nc2 {[%emt 0:02:06]} Kd5 {[%emt 0:04:01]} 49. g4 {[%emt 0:02:11]} fxg4 {[%emt 0:04:19]} 50. Rxg4 {[%emt 0:00:01]} Rb2 {[%emt 0:00:42]} 51. Ne3+ {[%emt 0:00:10]} Ke6 {[%emt 0:00:10]} 52. Re4+ {[%emt 0:00:05]} Kd7 {[%emt 0:01:25]} 53. Nd5 {[%emt 0:01:53]} Kd6 {[%emt 0:00:21]} 54. Nf6 {[%emt 0:00:14]} h5 {[%emt 0:01:07]} 55. Nh7 {[%emt 0:05:50]} Kd5 {[%emt 0:04:50]} 56. Nf6+ {[%emt 0:00:28]} Kd6 {[%emt 0:00:02]} 57. Nh7 {[%emt 0:00:04]} Kd5 {[%emt 0:00:13]} 58. Nf6+ {[%emt 0:01:08]} 1/2-1/2

[Event "EYTCC Open U18 2022"]
[Site "Thessaloniki"]
[Date "2022.07.16"]
[Round "5.2"]
[White "Ben Ari, Yannay"]
[Black "Czopor, Maciej"]
[Result "0-1"]
[ECO "A01"]
[WhiteElo "2411"]
[BlackElo "2415"]
[Annotator "ChessBase"]
[PlyCount "82"]
[EventDate "2022.07.12"]
[EventType "team-tourn"]
[EventCountry "GRE"]
[SourceTitle "playchess.com"]
[Source "ChessBase"]
[SourceQuality "1"]
[WhiteTeam "Israel"]
[BlackTeam "Poland"]
[WhiteTeamCountry "ISR"]
[BlackTeamCountry "POL"]
[TimeControl "40/5400+30:1800+30"]

1. b3 {[%emt 0:00:02]} e5 {[%emt 0:00:37]} 2. Bb2 {[%emt 0:00:03]} Nc6 {[%emt 0:00:47]} 3. c4 {[%emt 0:00:01]} Nf6 {[%emt 0:03:11]} 4. e3 {[%emt 0:00:03]} d5 {[%emt 0:09:29]} 5. cxd5 {[%emt 0:00:24]} Nxd5 {[%emt 0:00:04]} 6. a3 {[%emt 0:00:08]} Bd6 {[%emt 0:02:18]} 7. d3 {[%emt 0:00:19]} O-O {[%emt 0:01:53]} 8. Nd2 {[%emt 0:00:35]} Qe7 {[%emt 0:04:22]} 9. Ngf3 {[%emt 0:01:08]} Kh8 {[%emt 0:09:35]} 10. Be2 {[%emt 0:28:16]} f5 {[%emt 0:01:08]} 11. Nc4 {[%emt 0:10:41]} b5 {[%emt 0:04:21]} 12. Nxd6 {[%emt 0:03:38]} cxd6 {[%emt 0:00:13]} 13. O-O {[%emt 0:06:05]} Bb7 {[%emt 0:02:42]} 14. Re1 {[%emt 0:01:13]} Qf7 {[%emt 0:07:41]} 15. Bf1 {[%emt 0:05:04]} Rac8 {[%emt 0:03:19]} 16. Rc1 {[%emt 0:01:28]} a6 {[%emt 0:03:41]} 17. g3 {[%emt 0:03:37]} h6 {[%emt 0:12:15]} 18. Bg2 {[%emt 0:03:01]} Nde7 {[%emt 0:02:35]} 19. Re2 {[%emt 0:06:05]} Ba8 {[%emt 0:02:47]} 20. b4 {[%emt 0:10:09]} a5 {[%emt 0:01:03]} 21. bxa5 {[%emt 0:00:31]} Nxa5 {[%emt 0:00:15]} 22. Rec2 {[%emt 0:09:05]} Rxc2 {[%emt 0:01:35]} 23. Qxc2 {[%emt 0:01:04]} Nb3 {[%emt 0:02:03]} 24. Rd1 {[%emt 0:01:05]} Rc8 {[%emt 0:00:52]} 25. Qe2 {[%emt 0:00:48]} Qe6 {[%emt 0:04:43]} 26. Re1 {[%emt 0:05:35]} Ng8 {[%emt 0:07:51]} 27. Bh3 {[%emt 0:01:17]} Bxf3 {[%emt 0:06:00]} 28. Qxf3 {[%emt 0:00:02]} Rc2 {[%emt 0:00:01]} 29. Ba1 {[%emt 0:01:00]} Ne7 {[%emt 0:01:19]} 30. Qh5 {[%emt 0:02:26]} Qc8 {[%emt 0:01:56]} 31. Qf7 {[%emt 0:00:34]} Rc1 {[%emt 0:00:12]} 32. Rxc1 {[%emt 0:00:31]} Qxc1+ {[%emt 0:00:05]} 33. Kg2 {[%emt 0:00:25]} Nd2 {[%emt 0:00:06]} 34. g4 {[%emt 0:00:33]} f4 {[%emt 0:05:31]} 35. exf4 {[%emt 0:00:19]} Qc6+ {[%emt 0:00:01]} 36. Kg1 {[%emt 0:00:42]} Qc1+ {[%emt 0:00:40]} 37. Kg2 {[%emt 0:00:01]} Qf1+ {[%emt 0:00:24]} 38. Kg3 {[%emt 0:00:01]} Qxd3+ {[%emt 0:00:07]} 39. f3 {[%emt 0:01:08]} Qxf3+ {[%emt 0:00:22]} 40. Kh4 {[%emt 0:00:00]} Qf2+ {[%emt 0:00:00]} 41. Kh5 {[%emt 0:00:08]} g6+ {[%emt 0:00:27]} 0-1

[Event "EYTCC Open U18 2022"]
[Site "Thessaloniki"]
[Date "2022.07.16"]
[Round "5.3"]
[White "Klimkowski, Jan"]
[Black "Milikow, Elie"]
[Result "1-0"]
[ECO "B42"]
[WhiteElo "2398"]
[BlackElo "2433"]
[Annotator "ChessBase"]
[PlyCount "132"]
[EventDate "2022.07.12"]
[EventType "team-tourn"]
[EventCountry "GRE"]
[SourceTitle "playchess.com"]
[Source "ChessBase"]
[SourceQuality "1"]
[WhiteTeam "Poland"]
[BlackTeam "Israel"]
[WhiteTeamCountry "POL"]
[BlackTeamCountry "ISR"]
[TimeControl "40/5400+30:1800+30"]

1. e4 {[%emt 0:00:07]} c5 {[%emt 0:00:10]} 2. Nf3 {[%emt 0:00:06]} e6 {[%emt 0:00:06]} 3. d4 {[%emt 0:00:09]} cxd4 {[%emt 0:00:06]} 4. Nxd4 {[%emt 0:00:05]} a6 {[%emt 0:00:19]} 5. Bd3 {[%emt 0:00:10]} Bc5 {[%emt 0:00:15]} 6. Nb3 {[%emt 0:00:07]} Ba7 {[%emt 0:00:16]} 7. Qe2 {[%emt 0:00:18]} Nc6 {[%emt 0:01:19]} 8. Be3 {[%emt 0:00:29]} d6 {[%emt 0:00:55]} 9. O-O {[%emt 0:01:07]} Nf6 {[%emt 0:01:47]} 10. c4 {[%emt 0:01:54]} O-O {[%emt 0:01:54]} 11. Nc3 {[%emt 0:02:16]} e5 {[%emt 0:10:48]} 12. Nd5 {[%emt 0:05:01]} Nxd5 {[%emt 0:03:41]} 13. exd5 {[%emt 0:02:48]} Ne7 {[%emt 0:10:09]} 14. Bxa7 {[%emt 0:09:08]} Rxa7 {[%emt 0:00:07]} 15. f4 {[%emt 0:00:04]} exf4 {[%emt 0:07:09]} 16. Rxf4 {[%emt 0:00:15]} Ng6 {[%emt 0:33:37]} 17. Bxg6 {[%emt 0:00:29]} hxg6 {[%emt 0:00:07]} 18. Nd4 {[%emt 0:02:02]} Ra8 {[%emt 0:01:56]} 19. Raf1 {[%emt 0:06:11]} Bd7 {[%emt 0:01:42]} 20. Qf2 {[%emt 0:02:00]} f5 {[%emt 0:02:23]} 21. Qg3 {[%emt 0:18:53]} g5 {[%emt 0:16:08]} 22. Nxf5 {[%emt 0:12:24]} Qb6+ {[%emt 0:00:20]} 23. Qf2 {[%emt 0:01:19]} Qxf2+ {[%emt 0:00:04]} 24. R4xf2 {[%emt 0:00:04]} Rxf5 {[%emt 0:00:22]} 25. Rxf5 {[%emt 0:00:04]} Bxf5 {[%emt 0:00:10]} 26. Rxf5 {[%emt 0:00:05]} Rc8 {[%emt 0:00:09]} 27. b3 {[%emt 0:06:06]} b5 {[%emt 0:00:05]} 28. cxb5 {[%emt 0:03:51]} axb5 {[%emt 0:00:02]} 29. Rxg5 {[%emt 0:00:08]} Rc1+ {[%emt 0:00:39]} 30. Kf2 {[%emt 0:00:03]} Rc2+ {[%emt 0:00:36]} 31. Ke3 {[%emt 0:00:11]} Rxa2 {[%emt 0:00:55]} 32. Kd3 {[%emt 0:00:08]} Kf7 {[%emt 0:01:52]} 33. Kc3 {[%emt 0:02:45]} Kf6 {[%emt 0:00:09]} 34. h4 {[%emt 0:00:53]} Ra7 35. Kb4 {[%emt 0:01:21]} Rb7 {[%emt 0:01:00]} 36. g3 {[%emt 0:02:14]} g6 {[%emt 0:00:47]} 37. Rg4 {[%emt 0:02:47]} Kf5 {[%emt 0:00:32]} 38. Rg5+ {[%emt 0:00:04]} Kf6 {[%emt 0:00:06]} 39. Ka5 {[%emt 0:00:17]} b4 {[%emt 0:02:03]} 40. Rg4 {[%emt 0:00:00]} Ke5 {[%emt 0:00:00]} 41. Rxb4 {[%emt 0:03:43]} Rf7 {[%emt 0:07:40]} 42. Rg4 {[%emt 0:02:00]} Kxd5 {[%emt 0:01:27]} 43. Rxg6 {[%emt 0:00:12]} Ke5 {[%emt 0:00:50]} 44. b4 {[%emt 0:08:01]} d5 {[%emt 0:00:43]} 45. b5 {[%emt 0:00:40]} d4 {[%emt 0:00:40]} 46. Rg8 {[%emt 0:06:16]} Rd7 {[%emt 0:01:11]} 47. Re8+ {[%emt 0:03:05]} Kf5 {[%emt 0:00:57]} 48. b6 {[%emt 0:02:11]} d3 {[%emt 0:00:18]} 49. Re1 {[%emt 0:00:04]} d2 {[%emt 0:02:29]} 50. Rd1 {[%emt 0:00:03]} Ke4 {[%emt 0:02:09]} 51. Ka6 {[%emt 0:01:06]} Rd3 {[%emt 0:00:06]} 52. b7 {[%emt 0:00:33]} Ra3+ {[%emt 0:00:20]} 53. Kb6 {[%emt 0:00:09]} Rb3+ {[%emt 0:00:05]} 54. Kc7 {[%emt 0:09:57]} Rc3+ {[%emt 0:00:08]} 55. Kd6 {[%emt 0:02:35]} Rb3 {[%emt 0:01:08]} 56. Rxd2 {[%emt 0:00:13]} Rxb7 {[%emt 0:00:07]} 57. g4 {[%emt 0:06:11]} Rh7 {[%emt 0:05:19]} 58. Ke6 {[%emt 0:02:14]} Rh6+ {[%emt 0:02:06]} 59. Kf7 {[%emt 0:00:07]} Rxh4 60. g5 {[%emt 0:00:09]} Kf5 {[%emt 0:05:43]} 61. g6 {[%emt 0:00:18]} Ra4 {[%emt 0:00:08]} 62. Rf2+ {[%emt 0:01:04]} Kg5 {[%emt 0:00:19]} 63. Rg2+ {[%emt 0:00:06]} Kf5 {[%emt 0:01:10]} 64. g7 {[%emt 0:00:20]} Ra7+ {[%emt 0:00:05]} 65. Kf8 {[%emt 0:00:19]} Kf6 {[%emt 0:00:56]} 66. Rf2+ {[%emt 0:00:04]} Ke5 1-0

[Event "EYTCC Open U18 2022"]
[Site "Thessaloniki"]
[Date "2022.07.16"]
[Round "5.4"]
[White "Kochavi, Ori"]
[Black "Seemann, Jakub"]
[Result "1/2-1/2"]
[ECO "B31"]
[WhiteElo "2364"]
[BlackElo "2382"]
[Annotator "ChessBase"]
[PlyCount "81"]
[EventDate "2022.07.12"]
[EventType "team-tourn"]
[EventCountry "GRE"]
[SourceTitle "playchess.com"]
[Source "ChessBase"]
[SourceQuality "1"]
[WhiteTeam "Israel"]
[BlackTeam "Poland"]
[WhiteTeamCountry "ISR"]
[BlackTeamCountry "POL"]
[TimeControl "40/5400+30:1800+30"]

1. e4 {[%emt 0:00:48]} c5 {[%emt 0:00:07]} 2. Nf3 {[%emt 0:00:02]} Nc6 {[%emt 0:00:08]} 3. Bb5 {[%emt 0:00:02]} g6 {[%emt 0:00:10]} 4. Bxc6 {[%emt 0:00:06]} bxc6 {[%emt 0:00:06]} 5. d4 {[%emt 0:00:03]} cxd4 {[%emt 0:00:10]} 6. Qxd4 {[%emt 0:00:04]} f6 {[%emt 0:00:06]} 7. O-O {[%emt 0:02:58]} d6 {[%emt 0:03:48]} 8. Qa4 {[%emt 0:00:33]} Bd7 {[%emt 0:01:58]} 9. c4 {[%emt 0:00:05]} c5 {[%emt 0:00:55]} 10. Qc2 {[%emt 0:00:52]} Nh6 {[%emt 0:00:45]} 11. b3 {[%emt 0:09:29]} Nf7 {[%emt 0:00:37]} 12. Bb2 {[%emt 0:01:51]} Bg7 {[%emt 0:00:13]} 13. Nc3 {[%emt 0:00:45]} O-O {[%emt 0:01:08]} 14. Nd2 {[%emt 0:10:12]} f5 {[%emt 0:42:28]} 15. Nd5 {[%emt 0:04:35]} Bxb2 {[%emt 0:07:09]} 16. Qxb2 {[%emt 0:00:04]} Ne5 {[%emt 0:01:02]} 17. f4 {[%emt 0:21:19]} Nc6 {[%emt 0:00:11]} 18. e5 {[%emt 0:00:03]} Be6 {[%emt 0:04:58]} 19. Nf3 {[%emt 0:00:02]} dxe5 {[%emt 0:02:02]} 20. Rad1 {[%emt 0:08:23]} e4 {[%emt 0:15:47]} 21. Ne5 {[%emt 0:11:26]} Nxe5 {[%emt 0:00:07]} 22. Qxe5 {[%emt 0:00:11]} Bxd5 {[%emt 0:00:07]} 23. Rxd5 {[%emt 0:00:12]} Qb6 {[%emt 0:04:39]} 24. Rfd1 {[%emt 0:02:40]} Rac8 {[%emt 0:06:35]} 25. Rd7 {[%emt 0:07:29]} Qf6 {[%emt 0:01:17]} 26. Rxe7 {[%emt 0:00:30]} Qxe5 {[%emt 0:00:40]} 27. Rxe5 {[%emt 0:00:28]} Rfd8 {[%emt 0:03:58]} 28. Red5 {[%emt 0:05:19]} Rxd5 {[%emt 0:00:37]} 29. Rxd5 {[%emt 0:00:05]} Rc7 {[%emt 0:02:30]} 30. Kf1 {[%emt 0:02:23]} Kf7 {[%emt 0:00:17]} 31. Rd6 {[%emt 0:02:05]} Ke7 {[%emt 0:00:45]} 32. Ra6 {[%emt 0:00:04]} Rd7 {[%emt 0:00:34]} 33. Ke2 {[%emt 0:00:27]} Kd8 {[%emt 0:00:27]} 34. h3 {[%emt 0:00:55]} Kc8 {[%emt 0:00:34]} 35. Rc6+ {[%emt 0:08:19]} Rc7 {[%emt 0:00:18]} 36. Rf6 {[%emt 0:00:13]} Kb7 {[%emt 0:00:42]} 37. Rd6 {[%emt 0:00:29]} Rf7 {[%emt 0:00:26]} 38. Ke3 {[%emt 0:01:22]} Kc7 {[%emt 0:00:04]} 39. Ra6 {[%emt 0:00:03]} Kb7 {[%emt 0:00:06]} 40. Rd6 {[%emt 0:00:00]} Kc7 {[%emt 0:00:00]} 41. Ra6 {[%emt 0:11:49]} 1/2-1/2